[Event "Moscow-Open 2021_A"]
[Site "Moscow, Russia"]
[Date "2021.02.28"]
[Round "9.4"]
[White "Zarubitski, Viachaslau"]
[Black "Faizrakhmanov, Ramil"]
[Result "1-0"]
[ECO "B13"]
[WhiteElo "2446"]
[BlackElo "2476"]
[Annotator "zimin"]
[PlyCount "169"]
[EventDate "2021.??.??"]
[TimeControl "90+30"]
[WhiteClock "0:00:54"]
[BlackClock "0:00:48"]

{[%evp 0,64,18,25,68,64,64,66,66,39,29,7,58,40,93,69,83,-6,50,33,19,16,7,12,
-21,-12,23,6,14,18,13,35,18,15,51,-17,-29,-43,-40,-52,-49,-54,-65,-78,-69,-52,
-42,-41,-15,-14,8,-42,-36,-50,-41,-61,-59,-62,-35,-27,-27,-32,-13,-47,28,-71,
-62]} 1. e4 {[%emt 0:00:00]} c6 {[%emt 0:00:00]} 2. d4 {[%emt 0:00:00]} d5 {
[%emt 0:00:00]} 3. exd5 {[%emt 0:00:00]} cxd5 {[%emt 0:00:00]} 4. Bd3 {[%emt 0:
00:00]} Nc6 {[%emt 0:00:00]} 5. c3 {[%emt 0:00:00]} Qc7 {[%emt 0:00:00]} 6. Ne2
{[%emt 0:00:00]} Bg4 {[%emt 0:00:00]} 7. O-O {[%emt 0:00:00]} e6 {[%emt 0:00:
00]} 8. Qe1 {[%emt 0:00:00]} Nf6 {[%emt 0:00:00]} 9. Bf4 {[%emt 0:00:00]} Bd6 {
[%emt 0:00:00]} 10. Bxd6 {[%emt 0:00:00]} Qxd6 {[%emt 0:00:00]} 11. Ng3 {
[%emt 0:00:00]} O-O {[%emt 0:00:00]} 12. f4 {[%emt 0:00:00]} Ne7 {[%emt 0:00:
00]} 13. Nd2 {[%emt 0:00:00]} Rac8 {[%emt 0:00:00]} 14. Qe5 {[%emt 0:00:00]}
Qb6 {[%emt 0:00:00]} 15. Rab1 {[%emt 0:00:00]} Rfe8 {[%emt 0:00:00]} 16. h3 {
[%emt 0:00:00]} Bf5 {[%emt 0:00:00]} 17. Qe2 {[%emt 0:00:00]} g6 {[%emt 0:00:
00]} 18. Nf3 {[%emt 0:00:00]} Bxd3 {[%emt 0:00:00]} 19. Qxd3 {[%emt 0:00:00]}
Nf5 {[%emt 0:00:00]} 20. Ne5 {[%emt 0:00:00]} Nxg3 {[%emt 0:00:00]} 21. Qxg3 {
[%emt 0:00:00]} Ne4 {[%emt 0:00:00]} 22. Qe3 {[%emt 0:00:00]} f6 {[%emt 0:00:
00]} 23. Nf3 {[%emt 0:00:00]} Qd6 {[%emt 0:00:00]} 24. Nd2 {[%emt 0:00:00]} f5
{[%emt 0:00:00]} 25. Nxe4 {[%emt 0:02:00]} fxe4 {[%emt 0:00:00]} 26. Rf2 {
[%emt 0:00:53]} Re7 {[%emt 0:00:00]} 27. g4 {[%emt 0:01:58]} Rf7 {[%emt 0:00:
00]} 28. Rbf1 {[%emt 0:00:12]} b5 {[%emt 0:00:00]} 29. f5 {[%emt 0:02:04]} exf5
{[%emt 0:00:00]} 30. gxf5 {[%emt 0:00:03]} Rcf8 {[%emt 0:00:00]} 31. Qg5 {
[%emt 0:04:04]} Rf6 {[%emt 0:00:00]} 32. h4 {[%emt 0:03:33]} Kg7 {[%emt 0:00:
00]} 33. h5 {[%emt 0:02:15]} h6 {[%emt 0:00:00]} 34. Qg4 {[%emt 0:00:10]} g5 {
[%emt 0:00:30]} 35. Kg2 {[%emt 0:00:16]} Qd7 {[%emt 0:04:59]} 36. Kg1 {[%emt 0:
01:18]} R8f7 {[%emt 0:01:33]} 37. a3 {[%emt 0:00:36]} a5 {[%emt 0:03:38]} 38.
Qh3 {[%emt 0:00:04]} Kf8 {[%emt 0:01:33]} 39. Kh1 {[%emt 0:00:34]} Qd6 {
[%emt 0:00:59]} 40. Kg2 {[%emt 0:00:27]} Kg7 {[%emt 0:01:17]} 41. Qg3 {[%emt 0:
00:17]} Qd7 {[%emt 0:01:12]} 42. Qe5 {[%emt 0:00:19]} Re7 {[%emt 0:00:20]} 43.
Qg3 {[%emt 0:00:05]} Qe8 {[%emt 0:02:10]} 44. Qh3 {[%emt 0:00:33]} Qc8 {
[%emt 0:00:51]} 45. Qe3 {[%emt 0:00:18]} Qc6 {[%emt 0:00:47]} 46. Kh3 {[%emt 0:
00:10]} Ref7 {[%emt 0:01:14]} 47. Kg4 {[%emt 0:01:22]} Qd7 {[%emt 0:00:08]} 48.
Qg3 {[%emt 0:00:04]} e3 {[%emt 0:00:43]} 49. Qxe3 {[%emt 0:00:12]} Re7 {
[%emt 0:00:05]} 50. Qg3 {[%emt 0:00:38]} Qe8 {[%emt 0:00:42]} 51. Kh3 {[%emt 0:
01:47]} Qxh5+ {[%emt 0:01:06]} 52. Kg2 {[%emt 0:00:00]} Re4 {[%emt 0:00:33]}
53. Rh1 {[%emt 0:00:10]} Qg4 {[%emt 0:00:43]} 54. Qxg4 {[%emt 0:01:11]} Rxg4+ {
[%emt 0:00:02]} 55. Kf1 {[%emt 0:00:01]} Re4 {[%emt 0:00:50]} 56. Kg2 {[%emt 0:
00:21]} Rf8 {[%emt 0:01:01]} 57. Kg3 {[%emt 0:00:47]} Rfe8 {[%emt 0:01:13]} 58.
f6+ {[%emt 0:00:37]} Kg6 {[%emt 0:00:06]} 59. f7 {[%emt 0:00:02]} Re3+ {
[%emt 0:00:05]} 60. Kg2 {[%emt 0:00:05]} Rf8 {[%emt 0:00:28]} 61. Rhf1 {
[%emt 0:00:04]} Kg7 {[%emt 0:00:58]} 62. Rf6 {[%emt 0:02:03]} Re2+ {[%emt 0:00:
12]} 63. Kg3 {[%emt 0:00:02]} Rxb2 {[%emt 0:00:17]} 64. Kg4 {[%emt 0:00:13]}
Rg2+ {[%emt 0:00:46]} 65. Kh5 {[%emt 0:01:30]} Rh2+ {[%emt 0:00:09]} 66. Kg4 {
[%emt 0:00:05]} Rh4+ {[%emt 0:00:42]} 67. Kg3 {[%emt 0:00:32]} b4 {[%emt 0:01:
36]} 68. axb4 {[%emt 0:00:20]} axb4 {[%emt 0:00:03]} 69. cxb4 {[%emt 0:00:06]}
Rxd4 {[%emt 0:00:09]} 70. b5 {[%emt 0:00:04]} Rb4 {[%emt 0:01:02]} 71. b6 {
[%emt 0:00:14]} d4 {[%emt 0:01:39]} 72. Rd6 {[%emt 0:00:39]} h5 {[%emt 0:00:38]
} 73. Rf5 {[%emt 0:00:21]} Rb3+ {[%emt 0:00:27]} 74. Kg2 {[%emt 0:00:04]} g4 {
[%emt 0:00:25]} 75. Rxh5 {[%emt 0:00:55]} Kxf7 {[%emt 0:00:24]} 76. Rh7+ {
[%emt 0:01:13]} Ke8 {[%emt 0:00:42]} 77. Rc6 {[%emt 0:00:51]} Rb2+ {[%emt 0:00:
30]} 78. Kg3 {[%emt 0:00:06]} Rf3+ {[%emt 0:00:11]} 79. Kxg4 {[%emt 0:00:25]}
Rc3 {[%emt 0:00:03]} 80. Re6+ {[%emt 0:01:37]} Kf8 {[%emt 0:00:50]} 81. b7 {
[%emt 0:00:28]} Rcb3 {[%emt 0:00:58]} 82. Rc6 {[%emt 0:00:30]} Rg2+ {[%emt 0:
00:27]} 83. Kf4 {[%emt 0:00:24]} Rf2+ {[%emt 0:00:18]} 84. Ke4 {[%emt 0:00:11]}
Kg8 {[%emt 0:00:28]} 85. Rd7 {[%emt 0:00:43]} 1-0

[Event "Moscow-Open 2021_A"]
[Site "Moscow, Russia"]
[Date "2021.02.28"]
[Round "9.5"]
[White "Nesterov, Arseniy"]
[Black "Kukhmazov, Arsen"]
[Result "1-0"]
[ECO "D24"]
[WhiteElo "2476"]
[BlackElo "2442"]
[Annotator "zimin"]
[PlyCount "57"]
[EventDate "2021.??.??"]
[TimeControl "90+30"]
[WhiteClock "0:40:39"]
[BlackClock "0:02:15"]

{[%evp 0,57,21,26,34,-29,4,-8,-8,-9,53,45,16,16,74,74,109,83,79,44,70,32,58,52,
57,31,39,43,36,17,27,14,14,-127,-104,-129,-82,-102,-102,-102,-32,14,41,18,18,
-53,129,221,247,247,260,255,233,223,344,198,198,210,277,275]} 1. d4 {[%emt 0:
00:00]} Nf6 {[%emt 0:00:00]} 2. c4 {[%emt 0:00:00]} e6 {[%emt 0:00:00]} 3. Nf3
{[%emt 0:00:00]} d5 {[%emt 0:00:00]} 4. Nc3 {[%emt 0:00:00]} dxc4 {[%emt 0:00:
00]} 5. e4 {[%emt 0:00:00]} b5 {[%emt 0:00:00]} 6. e5 {[%emt 0:00:00]} Nd5 {
[%emt 0:00:00]} 7. Nxb5 {[%emt 0:00:00]} Nb6 {[%emt 0:00:00]} 8. Be2 {[%emt 0:
00:00]} Nc6 {[%emt 0:00:00]} 9. Be3 {[%emt 0:00:00]} Be7 {[%emt 0:00:00]} 10.
a3 {[%emt 0:00:00]} Na5 {[%emt 0:00:00]} 11. Qc2 {[%emt 0:00:00]} Bb7 {[%emt 0:
00:00]} 12. Rd1 {[%emt 0:00:00]} Bc6 {[%emt 0:00:00]} 13. Nc3 {[%emt 0:00:00]}
Rb8 {[%emt 0:00:00]} 14. h4 {[%emt 0:00:00]} Qd7 {[%emt 0:00:00]} 15. Rh3 {
[%emt 0:00:00]} Na4 {[%emt 0:00:00]} 16. d5 {[%emt 0:00:00]} exd5 {[%emt 0:00:
00]} 17. e6 {[%emt 0:00:00]} fxe6 {[%emt 0:00:00]} 18. Ne5 {[%emt 0:00:00]}
Rxb2 {[%emt 0:00:36]} 19. Bh5+ {[%emt 0:00:00]} Kd8 {[%emt 0:07:17]} 20. Qc1 {
[%emt 0:00:00]} Nb3 {[%emt 0:00:44]} 21. Nxa4 {[%emt 0:00:00]} Nxc1 {[%emt 0:
01:37]} 22. Nxb2 {[%emt 0:00:00]} c3 {[%emt 0:00:23]} 23. Nbc4 {[%emt 0:00:00]}
Nb3 {[%emt 0:00:59]} 24. Nxd7 {[%emt 0:00:00]} c2 {[%emt 0:00:00]} 25. Nce5 {
[%emt 0:00:00]} cxd1=Q+ {[%emt 0:01:24]} 26. Bxd1 {[%emt 0:00:00]} Na5 {
[%emt 0:00:02]} 27. Nf7+ {[%emt 0:00:00]} Kxd7 {[%emt 0:00:04]} 28. Nxh8 {
[%emt 0:00:00]} Ke8 {[%emt 0:00:09]} 29. Bc2 {[%emt 0:00:00]} 1-0

[Event "Moscow-Open 2021_A"]
[Site "Moscow, Russia"]
[Date "2021.02.28"]
[Round "9.6"]
[White "Korchmar, Vasiliy"]
[Black "Kardashevskiy, Evgeny"]
[Result "1-0"]
[ECO "D35"]
[WhiteElo "2451"]
[BlackElo "2427"]
[Annotator "zimin"]
[PlyCount "91"]
[EventDate "2021.??.??"]
[TimeControl "90+30"]
[WhiteClock "0:20:21"]
[BlackClock "0:01:00"]

{[%evp 0,63,21,26,27,-8,-8,-8,0,-17,-26,-47,0,4,46,28,44,29,56,-5,32,76,60,65,
57,49,106,64,64,51,51,49,91,75,85,47,63,56,38,34,74,44,135,135,153,159,116,119,
119,80,82,81,104,119,93,77,99,89,124,113,113,79,164,102,141,155]} 1. d4 {
[%emt 0:00:00]} Nf6 {[%emt 0:00:00]} 2. c4 {[%emt 0:00:00]} e6 {[%emt 0:00:00]}
3. Nc3 {[%emt 0:00:00]} d5 {[%emt 0:00:00]} 4. cxd5 {[%emt 0:00:00]} exd5 {
[%emt 0:00:00]} 5. Bg5 {[%emt 0:00:00]} Be7 {[%emt 0:00:00]} 6. e3 {[%emt 0:00:
00]} c6 {[%emt 0:00:00]} 7. Bd3 {[%emt 0:00:00]} Nbd7 {[%emt 0:00:00]} 8. h3 {
[%emt 0:00:00]} Nf8 {[%emt 0:00:00]} 9. Bf4 {[%emt 0:00:00]} Ne6 {[%emt 0:00:
00]} 10. Be5 {[%emt 0:00:00]} g6 {[%emt 0:00:00]} 11. Nf3 {[%emt 0:00:00]} O-O
{[%emt 0:00:00]} 12. O-O {[%emt 0:00:00]} Ng7 {[%emt 0:00:00]} 13. a3 {[%emt 0:
00:00]} Bf5 {[%emt 0:00:00]} 14. b4 {[%emt 0:00:00]} Bxd3 {[%emt 0:00:00]} 15.
Qxd3 {[%emt 0:00:00]} b5 {[%emt 0:00:00]} 16. Ne2 {[%emt 0:00:00]} a5 {[%emt 0:
00:00]} 17. Qc3 {[%emt 0:00:00]} Ra6 {[%emt 0:00:00]} 18. Bxf6 {[%emt 0:00:00]}
Bxf6 {[%emt 0:00:00]} 19. Ne5 {[%emt 0:00:00]} Qd6 {[%emt 0:00:00]} 20. Nf4 {
[%emt 0:00:00]} Be7 {[%emt 0:00:00]} 21. bxa5 {[%emt 0:00:00]} f6 {[%emt 0:00:
00]} 22. Ned3 {[%emt 0:00:00]} Bd8 {[%emt 0:00:00]} 23. a4 {[%emt 0:00:00]}
Rxa5 {[%emt 0:00:00]} 24. axb5 {[%emt 0:00:00]} Rxb5 {[%emt 0:00:00]} 25. Rfc1
{[%emt 0:00:00]} g5 {[%emt 0:00:00]} 26. Ne2 {[%emt 0:00:00]} Rb6 {[%emt 0:00:
00]} 27. Qc5 {[%emt 0:00:00]} Qb8 {[%emt 0:00:00]} 28. Qc2 {[%emt 0:00:00]} Qd6
{[%emt 0:00:00]} 29. Ra7 {[%emt 0:00:00]} Bc7 {[%emt 0:00:00]} 30. g3 {[%emt 0:
00:00]} Rfb8 {[%emt 0:00:00]} 31. Nc3 {[%emt 0:00:00]} Rb3 {[%emt 0:00:00]} 32.
Nxd5 {[%emt 0:00:00]} Bd8 {[%emt 0:04:09]} 33. Nc3 {[%emt 0:00:00]} f5 {
[%emt 0:02:02]} 34. Na4 {[%emt 0:00:00]} f4 {[%emt 0:02:00]} 35. Nac5 {[%emt 0:
00:00]} Rxd3 {[%emt 0:02:51]} 36. Qxd3 {[%emt 0:00:00]} fxg3 {[%emt 0:00:18]}
37. Qc4+ {[%emt 0:00:00]} Kh8 {[%emt 0:00:23]} 38. Qf7 {[%emt 0:00:00]} gxf2+ {
[%emt 0:00:32]} 39. Kg2 {[%emt 0:02:03]} Bf6 {[%emt 0:02:06]} 40. Ne4 {[%emt 0:
01:03]} f1=Q+ {[%emt 0:03:08]} 41. Rxf1 {[%emt 0:00:06]} Rb2+ {[%emt 0:00:08]}
42. Rf2 {[%emt 0:00:05]} Rxf2+ {[%emt 0:00:34]} 43. Nxf2 {[%emt 0:00:08]} h5 {
[%emt 0:02:33]} 44. Rd7 {[%emt 0:00:36]} Qe6 {[%emt 0:02:08]} 45. Qxe6 {
[%emt 0:00:06]} Nxe6 {[%emt 0:00:08]} 46. Rd6 {[%emt 0:00:02]} 1-0